bitfinex-derivatives/quotes_BTCF0:USTF0_20240929
["timestamp","ask_amount","ask_price","bid_price","bid_amount"]
[1727609818189,0.4508,65714.0,65713.0,0.19163292]
[1727609819097,0.4508,65714.0,65713.0,0.19263292]
[1727609819299,0.4508,65714.0,65713.0,0.19363292]
[1727609820498,0.4508,65714.0,65713.0,0.19363016]
[1727609821691,0.4508,65714.0,65713.0,0.07767152]
[1727609823986,0.4508,65714.0,65713.0,0.002]
[1727609827491,0.4508,65714.0,65713.0,0.07767152]
[1727609828894,0.4508,65714.0,65713.0,0.002]
[1727609835607,0.09,65714.0,65713.0,0.002]
[1727609835808,0.0035,65721.0,65713.0,0.002]
[1727609836118,0.0035,65721.0,65714.0,0.22480471]
[1727609836503,0.0035,65725.0,65720.0,0.06053634]
[1727609836704,0.0313,65726.0,65724.0,0.0453748]
[1727609836910,0.0513,65726.0,65725.0,0.11592961]
[1727609837109,0.02,65726.0,65725.0,0.11592961]
[1727609837510,0.0329,65727.0,65725.0,0.11592961]
[1727609837812,0.0329,65727.0,65724.0,0.09070297]
[1727609837813,0.0529,65727.0,65726.0,0.11592961]
[1727609838614,0.0529,65727.0,65726.0,0.11592758]
[1727609840008,0.0529,65727.0,65726.0,0.11692758]
[1727609840412,0.0529,65727.0,65726.0,0.19244872]
[1727609841018,0.0529,65727.0,65726.0,0.19344872]
[1727609841611,0.0529,65727.0,65726.0,0.07752114]
[1727609842111,0.3608,65729.0,65726.0,0.19344872]
[1727609842313,0.4508,65729.0,65726.0,0.07752114]
[1727609843115,0.4508,65729.0,65726.0,0.002]
[1727609843708,0.4508,65729.0,65726.0,0.001]
[1727609843902,0.4508,65729.0,65726.0,0.002]
[1727609847218,0.4508,65729.0,65727.0,0.0322]
[1727609847603,0.4508,65729.0,65728.0,0.0327]
[1727609850219,0.4508,65729.0,65728.0,0.0337]
[1727609850619,0.4508,65729.0,65728.0,0.0347]
[1727609851912,0.4508,65729.0,65728.0,0.22597198]
[1727609852218,0.3608,65729.0,65728.0,0.22597198]
[1727609852618,0.3708,65729.0,65728.0,0.22597198]
[1727609853207,0.01,65729.0,65728.0,0.22597198]
[1727609853414,0.01,65729.0,65728.0,0.19324917]
[1727609856309,0.3327437,65734.0,65728.0,0.19324917]
[1727609856521,0.4427437,65734.0,65732.0,0.06033623]
[1727609857726,0.4427437,65734.0,65733.0,0.06033623]
[1727609858225,0.4427437,65734.0,65732.0,0.06133623]
[1727609858725,0.4427437,65734.0,65733.0,0.06033623]
[1727609860421,0.4427437,65734.0,65733.0,0.06233623]
[1727609860625,0.4427437,65734.0,65733.0,0.002]
[1727609864725,0.4427437,65734.0,65733.0,0.11770097]
[1727609866925,0.4427437,65734.0,65733.0,0.002]
[1727609874241,0.4427437,65734.0,65733.0,0.20853969]
[1727609878638,0.4427437,65734.0,65733.0,0.11783672]
[1727609880533,0.4427437,65734.0,65733.0,0.25614542]
[1727609881529,0.4427437,65734.0,65733.0,0.25622782]
[1727609882246,0.47999372,65734.0,65733.0,0.002]
[1727609884149,0.14725002,65734.0,65733.0,0.002]
[1727609884345,0.50805002,65734.0,65733.0,0.002]
[1727609884941,0.14725002,65734.0,65733.0,0.002]
[1727609885149,0.50805002,65734.0,65733.0,0.002]
[1727609889152,0.4708,65734.0,65733.0,0.25622965]
[1727609889951,0.11,65734.0,65733.0,0.20879221]
[1727609890146,0.11,65734.0,65733.0,0.25626241]
[1727609891141,0.11,65734.0,65733.0,0.25617463]
[1727609891751,0.11,65734.0,65733.0,0.11791723]
[1727609893553,0.00030175,65735.0,65733.0,0.11791723]
[1727609893756,0.00030175,65735.0,65734.0,0.11591723]
[1727609894051,0.00030175,65735.0,65734.0,0.14821723]
[1727609894555,0.00030175,65735.0,65734.0,0.23906395]
[1727609895443,0.00030175,65735.0,65734.0,0.24006395]
[1727609895853,0.00030175,65735.0,65734.0,0.14921655]
[1727609896056,0.00030175,65735.0,65734.0,0.24006061]
[1727609896356,0.00030175,65735.0,65734.0,0.14921655]
[1727609896753,0.00030175,65735.0,65734.0,0.15021655]
[1727609897252,0.04755079,65735.0,65734.0,0.0343]
[1727609898361,0.13194468,65735.0,65734.0,0.0343]
[1727609898662,0.16919372,65735.0,65734.0,0.0343]
[1727609900861,0.21588285,65735.0,65734.0,0.0343]
[1727609901061,0.09423992,65735.0,65734.0,0.0343]
[1727609902158,0.08423992,65735.0,65734.0,0.0343]
[1727609902552,0.13725023,65735.0,65734.0,0.0343]
[1727609902755,0.12202944,65735.0,65734.0,0.0343]
[1727609902950,0.00030175,65735.0,65734.0,0.0343]
[1727609903150,0.00030175,65735.0,65734.0,0.04196649]
[1727609903456,0.00030175,65735.0,65734.0,0.44542677]
[1727609903671,0.0035,65740.0,65734.0,1.66285597]
[1727609903850,0.49774848,65748.0,65734.0,1.66285597]
[1727609903851,0.007,65745.0,65737.0,0.3608]
[1727609904053,0.03724472,65744.0,65738.0,0.0626]
[1727609904249,0.02,65744.0,65739.0,0.11557826]
[1727609904453,0.02,65744.0,65738.0,0.15344406]
[1727609904454,0.02,65744.0,65740.0,0.11557826]
[1727609904665,0.02,65744.0,65741.0,0.11557826]
[1727609904965,0.02,65744.0,65738.0,0.15344406]
[1727609905158,0.02,65744.0,65739.0,0.11555247]
[1727609905363,0.02,65744.0,65740.0,0.11555247]
[1727609905659,0.02,65744.0,65741.0,0.11555247]
[1727609905862,0.02,65744.0,65742.0,0.11555247]
[1727609906065,0.02,65744.0,65743.0,0.11555247]
[1727609906459,0.02,65744.0,65743.0,0.19114532]
[1727609907560,0.02,65744.0,65743.0,0.07659285]
[1727609907768,0.02,65744.0,65743.0,0.07759285]
[1727609907969,0.02,65744.0,65743.0,0.19308437]
[1727609908465,0.02,65744.0,65743.0,0.07759285]
[1727609910255,0.02,65744.0,65743.0,0.19306397]
[1727609910459,0.02,65744.0,65743.0,0.07759285]
[1727609910664,0.02,65744.0,65743.0,0.19291513]
[1727609911475,0.02,65744.0,65743.0,0.07759285]
[1727609911867,0.02,65744.0,65743.0,0.19290944]
[1727609912177,0.02,65744.0,65743.0,0.002]
[1727609915367,0.02,65744.0,65743.0,0.3628]
[1727609915673,0.02,65744.0,65743.0,0.4081361]
[1727609915866,0.02,65744.0,65743.0,0.3628]
[1727609916462,0.3608,65748.0,65743.0,0.3628]
[1727609916664,0.4708,65748.0,65744.0,0.04532255]
[1727609917066,0.4708,65748.0,65745.0,0.0319]
[1727609918467,0.4708,65748.0,65745.0,0.0329]
[1727609919064,0.4708,65748.0,65745.0,0.001]
[1727609919269,0.4708,65748.0,65745.0,0.002]
[1727609919270,0.08392554,65747.0,65745.0,0.002]
[1727609919478,0.11542554,65746.0,65741.0,0.0035]
[1727609919775,0.0004,65742.0,65741.0,0.0035]
[1727609919977,0.13764343,65742.0,65737.0,0.0035]
[1727609920179,0.0004,65738.0,65737.0,0.0035]
[1727609920375,0.0104,65738.0,65735.0,0.0302]
[1727609920573,0.0004,65736.0,65735.0,0.0302]
[1727609920773,0.1004,65736.0,65735.0,0.0302]
[1727609921873,0.1004,65736.0,65735.0,0.0312]
[1727609923571,0.1024,65736.0,65735.0,0.0322]
[1727609926883,0.0024,65736.0,65735.0,0.0322]
[1727609927277,0.0004,65742.0,65735.0,0.28448092]
[1727609927478,0.0104,65742.0,65740.0,0.09066157]
[1727609927678,0.0104,65742.0,65741.0,0.11509367]
[1727609929472,0.0114,65742.0,65741.0,0.11509367]
[1727609929871,0.0114,65742.0,65741.0,0.11510347]
[1727609930486,0.0114,65742.0,65741.0,0.25332677]
[1727609930786,0.0114,65742.0,65741.0,0.25432677]
[1727609934385,0.04864354,65742.0,65741.0,0.002]
[1727609934784,0.04864345,65742.0,65741.0,0.002]
[1727609940976,0.13310047,65742.0,65741.0,0.002]
[1727609941179,0.17034423,65742.0,65741.0,0.002]
[1727609941381,0.04864345,65742.0,65741.0,0.002]
[1727609942179,0.0114,65742.0,65741.0,0.11721158]
[1727609942586,0.0114,65742.0,65741.0,0.25454559]
[1727609944490,0.3722,65742.0,65741.0,0.25454559]
[1727609946093,0.0114,65742.0,65741.0,0.25454559]
[1727609946289,0.3722,65742.0,65741.0,0.25454559]
[1727609947288,0.0114,65742.0,65741.0,0.11721158]
[1727609947801,0.3722,65742.0,65741.0,0.11721158]
[1727609949186,0.3722,65742.0,65741.0,0.25460551]
[1727609949484,0.3722,65742.0,65741.0,0.11721158]
[1727609950798,0.3122,65742.0,65741.0,0.11721158]
[1727609951688,0.041,65742.0,65741.0,0.11721158]
[1727609952796,0.04,65742.0,65741.0,0.11627507]
[1727609952998,0.041,65742.0,65741.0,0.11727507]
[1727609953894,0.04,65742.0,65741.0,0.11627507]
[1727609954207,0.041,65742.0,65741.0,0.11727507]
[1727609954399,0.0029492,65742.0,65741.0,0.11727507]
[1727609955501,0.0029492,65742.0,65741.0,0.25434035]
[1727609957399,0.08687738,65742.0,65741.0,0.002]
[1727609964296,0.0029492,65742.0,65741.0,0.11699651]
[1727609964707,0.0029492,65742.0,65741.0,0.19266932]
[1727609965600,0.0029492,65742.0,65741.0,0.07767281]
[1727609965995,0.0029492,65742.0,65741.0,0.19268274]
[1727609969796,0.3637492,65742.0,65741.0,0.19268274]
[1727609972409,0.52271834,65742.0,65741.0,0.002]
[1727609973514,0.40099461,65742.0,65741.0,0.002]
[1727609973697,0.4476792,65742.0,65741.0,0.002]
[1727609974205,0.5846184,65742.0,65741.0,0.002]
[1727609974403,1.0409384,65742.0,65741.0,0.002]
[1727609974604,0.58461855,65742.0,65735.0,0.0035]
[1727609974807,0.49774558,65736.0,65735.0,0.0035]
[1727609975009,0.41844541,65736.0,65730.0,0.0307]
[1727609975207,0.15898233,65735.0,65730.0,0.0307]
[1727609975510,0.0004,65731.0,65730.0,0.0307]
[1727609975720,0.0204,65731.0,65730.0,0.0307]
[1727609976014,0.05765074,65731.0,65730.0,0.0307]
[1727609976512,0.0204,65731.0,65730.0,0.0307]
[1727609976908,0.0204,65731.0,65730.0,0.0317]
[1727609977410,0.0214,65731.0,65730.0,0.0317]
[1727609978106,0.0224,65731.0,65730.0,0.0327]
[1727609979307,0.0224,65731.0,65730.0,0.14802402]
[1727609986425,0.0224,65731.0,65730.0,0.0327]
[1727609994429,0.0224,65731.0,65730.0,0.14790419]
[1727609995928,0.0035,65735.0,65730.0,0.23870118]
[1727609996125,0.3943,65735.0,65734.0,0.0755838]
[1727609996326,0.3908,65735.0,65734.0,0.11520162]
[1727609996822,0.3908,65735.0,65734.0,0.1150486]
[1727609997017,0.3918,65735.0,65734.0,0.1150486]
[1727609997935,0.031,65735.0,65734.0,0.1170486]
[1727609998119,0.007,65743.0,65734.0,0.12445883]
[1727609998319,0.007,65747.0,65742.0,0.3608]
[1727609998631,0.00440175,65755.0,65743.0,0.25475957]
[1727609998632,0.007,65753.0,65743.0,0.25475957]
[1727609998827,0.1,65753.0,65750.0,0.42124332]
[1727610000124,0.1,65753.0,65750.0,0.42224332]
[1727610000821,0.1,65753.0,65750.0,0.42324332]
[1727610001429,0.1,65753.0,65751.0,0.0306]
[1727610002224,0.1,65753.0,65752.0,0.04531623]
[1727610002719,0.1,65753.0,65751.0,0.0316]
[1727610002920,0.0004,65752.0,65751.0,0.0316]
[1727610003125,0.0104,65752.0,65751.0,0.0326]
[1727610006330,0.0104,65752.0,65751.0,0.07789518]
[1727610007230,0.0104,65752.0,65751.0,0.0326]
[1727610007435,0.0104,65752.0,65751.0,0.09304332]
[1727610008134,0.00030175,65755.0,65751.0,0.0326]
[1727610008328,0.00030175,65755.0,65753.0,0.04527647]
[1727610008329,0.09030175,65755.0,65753.0,0.04527647]
[1727610009237,0.09030175,65755.0,65752.0,0.04527647]
[1727610009432,0.09030175,65755.0,65751.0,0.0326]
[1727610009433,0.0004,65753.0,65751.0,0.0326]
[1727610009640,0.08432201,65752.0,65751.0,0.0316]
[1727610009938,0.11432201,65752.0,65751.0,0.0316]
[1727610010941,0.11432201,65752.0,65751.0,0.3934]
[1727610016535,0.0304,65752.0,65751.0,0.3934]
[1727610024551,0.06764165,65752.0,65751.0,0.3934]
[1727610024956,0.11432153,65752.0,65751.0,0.3934]
[1727610025359,0.11432155,65752.0,65751.0,0.3934]
[1727610025561,0.0304,65752.0,65751.0,0.3934]
[1727610025863,0.06764166,65752.0,65751.0,0.3934]
[1727610026256,0.11432155,65752.0,65751.0,0.3934]
[1727610030860,0.11432155,65752.0,65751.0,0.3628]
[1727610031653,0.0304,65752.0,65751.0,0.3628]
[1727610033463,0.0004,65752.0,65751.0,0.3628]
[1727610038464,0.0004,65752.0,65751.0,0.40815144]
[1727610042869,0.0004,65752.0,65751.0,0.04735144]
[1727610043067,0.0004,65752.0,65751.0,0.76895144]
[1727610043866,0.0004,65752.0,65751.0,0.04735144]
[1727610044059,0.0004,65752.0,65751.0,0.76895144]
[1727610046767,0.08431338,65752.0,65751.0,0.7236]
[1727610047572,0.08431338,65752.0,65751.0,0.002]
[1727610047875,0.08431338,65752.0,65751.0,0.7236]
[1727610048469,0.08431338,65752.0,65751.0,0.002]
[1727610048672,0.08431338,65752.0,65751.0,0.7236]
[1727610050473,0.08431338,65752.0,65751.0,0.002]
[1727610050775,0.08431338,65752.0,65751.0,0.7236]
[1727610051277,0.15249805,65752.0,65751.0,0.7236]
[1727610051464,0.23641143,65752.0,65751.0,0.7236]
[1727610051664,0.22110864,65752.0,65751.0,0.7236]
[1727610051862,0.08431338,65752.0,65751.0,0.7236]
[1727610053878,0.08431179,65752.0,65751.0,0.7236]
[1727610054781,0.0004,65752.0,65751.0,0.7236]
[1727610059372,0.10639963,65773.0,65751.0,0.79916252]
[1727610059565,0.03,65760.0,65759.0,0.42125822]
[1727610059771,0.0105,65768.0,65759.0,0.3608]
[1727610059977,0.11,65768.0,65766.0,0.3608]
[1727610060366,0.45616,65767.0,65766.0,0.3608]
[1727610060772,0.46616,65767.0,65766.0,0.3608]
[1727610061670,0.55006239,65767.0,65766.0,0.3608]
[1727610061869,0.55006239,65767.0,65766.0,0.3618]
[1727610062077,0.55006239,65767.0,65766.0,0.3628]
[1727610064884,0.09390239,65767.0,65766.0,0.3628]
[1727610069799,0.01,65767.0,65766.0,0.3628]
[1727610073299,0.3708,65767.0,65766.0,0.002]
[1727610074003,0.007,65772.0,65766.0,0.002]
[1727610074209,0.1,65772.0,65771.0,0.3608]
[1727610074699,1.15612,65772.0,65771.0,0.3608]
[1727610074997,1.15612,65772.0,65766.0,0.002]
[1727610075192,0.1,65772.0,65766.0,0.002]
[1727610075500,0.0004,65767.0,65765.0,0.0035]
[1727610075793,0.1104,65767.0,65766.0,0.001]
[1727610076405,0.1104,65767.0,65766.0,0.002]
[1727610076604,0.1104,65767.0,65766.0,0.001]
[1727610076798,0.23191114,65767.0,65766.0,0.001]
[1727610077001,0.26914418,65767.0,65766.0,0.001]
[1727610078404,0.26914418,65767.0,65766.0,0.002]
[1727610079801,0.14763304,65767.0,65766.0,0.002]
[1727610080103,0.19430213,65767.0,65766.0,0.002]
[1727610084912,0.1104,65767.0,65766.0,0.06244864]
[1727610085321,0.1104,65767.0,65766.0,0.002]
[1727610086509,0.4712,65767.0,65766.0,0.002]
[1727610086919,0.1104,65767.0,65766.0,0.002]
[1727610087218,0.4712,65767.0,65766.0,0.002]
[1727610089106,0.1104,65767.0,65766.0,0.002]
[1727610093512,0.1104,65767.0,65766.0,0.0648]
[1727610096022,0.1104,65767.0,65766.0,0.1253076]
[1727610100027,0.19430312,65767.0,65766.0,0.0648]
[1727610102026,0.15706964,65767.0,65766.0,0.0648]
[1727610102224,0.03763348,65767.0,65766.0,0.0648]
[1727610103732,0.04763348,65767.0,65766.0,0.0648]
[1727610103930,0.03763348,65767.0,65766.0,0.0648]
[1727610104130,0.12204998,65767.0,65766.0,0.0648]
[1727610104437,0.03763348,65767.0,65766.0,0.0648]
[1727610105731,0.03763132,65767.0,65766.0,0.0648]
[1727610106231,0.0004,65767.0,65766.0,0.0648]
[1727610106434,0.08429824,65767.0,65766.0,0.0648]
[1727610106626,0.12429824,65767.0,65766.0,0.0648]
[1727610106822,0.0404,65767.0,65766.0,0.0648]
[1727610109232,0.0404,65767.0,65766.0,0.002]
[1727610114837,0.4012,65767.0,65766.0,0.002]
[1727610115031,0.48510603,65767.0,65766.0,0.002]
[1727610115231,0.48510603,65767.0,65759.0,0.0035]
[1727610115232,0.48510581,65767.0,65759.0,0.0035]
[1727610115438,0.0004,65760.0,65755.0,0.0057812]
[1727610115639,0.0004,65760.0,65755.0,0.0022812]
[1727610115640,0.0004,65756.0,65755.0,0.0022812]
[1727610115941,0.05763467,65756.0,65755.0,0.0022812]
[1727610117345,0.05763467,65756.0,65755.0,0.0032812]
[1727610118044,0.05863467,65756.0,65755.0,0.0042812]
[1727610119737,0.18024314,65756.0,65755.0,0.0042812]
[1727610120144,0.05863541,65756.0,65755.0,0.0042812]
[1727610121946,0.29090105,65757.0,65755.0,0.25407053]
[1727610122145,0.30090105,65757.0,65756.0,0.24978933]
[1727610122847,0.30090105,65757.0,65756.0,0.11395698]
[1727610124342,0.30090105,65757.0,65756.0,0.11495698]
[1727610125447,0.30090105,65757.0,65756.0,0.11595698]
[1727610128546,0.30090105,65757.0,65756.0,0.1153009]
[1727610131046,0.30090105,65757.0,65756.0,0.20599303]
[1727610131748,0.30090105,65757.0,65756.0,0.1153009]
[1727610133452,0.30090105,65757.0,65756.0,0.19096562]
[1727610133656,0.30090105,65757.0,65756.0,0.002]
[1727610133954,0.30090105,65757.0,65756.0,0.00307872]
[1727610133955,1.35714105,65757.0,65756.0,0.00307872]
[1727610134156,1.35714105,65757.0,65755.0,0.04536969]
[1727610134358,0.45664,65756.0,65751.0,0.04886969]
[1727610134551,0.3608,65754.0,65751.0,0.04886969]
[1727610134753,0.03,65753.0,65751.0,0.04536969]
[1727610135063,0.0004,65752.0,65748.0,0.04536969]
[1727610135255,0.0004,65749.0,65747.0,0.04886969]
[1727610135455,0.3612,65748.0,65747.0,0.04536969]
[1727610135760,0.4612,65748.0,65747.0,0.04536969]
[1727610136160,0.4612,65748.0,65746.0,0.04536969]
[1727610136562,0.0004,65747.0,65746.0,0.04536969]
[1727610136754,0.1104,65747.0,65746.0,0.04536969]
[1727610136950,0.1104,65747.0,65743.0,0.0035]
[1727610137151,0.0004,65744.0,65743.0,0.0035]
[1727610137350,0.0004,65744.0,65739.0,0.00228173]
[1727610137351,0.1004,65744.0,65739.0,0.00228173]
[1727610137563,0.3612,65740.0,65739.0,0.00228173]
[1727610137862,0.4012,65740.0,65739.0,0.00228173]
[1727610138955,0.4032,65740.0,65739.0,0.00328173]
[1727610139659,0.4032,65740.0,65739.0,0.00428173]
[1727610139660,0.4042,65740.0,65739.0,0.00428173]
[1727610148568,0.4042,65740.0,65739.0,0.04954023]
[1727610150761,0.4042,65740.0,65739.0,0.00428173]
[1727610155271,0.4042,65740.0,65739.0,0.002]
[1727610165172,0.4042,65740.0,65739.0,0.07759024]
[1727610165972,0.4042,65740.0,65739.0,0.002]
[1727610166175,0.4042,65740.0,65739.0,0.07759024]
[1727610167080,0.4042,65740.0,65739.0,0.002]
[1727610174075,0.4042,65740.0,65739.0,0.11613111]
[1727610176974,0.4042,65740.0,65739.0,0.11614015]
[1727610180990,0.4042,65740.0,65739.0,0.11613762]
[1727610185108,0.4042,65740.0,65739.0,0.11616546]
[1727610189188,0.4042,65740.0,65739.0,0.002]
[1727610197295,0.4042,65740.0,65739.0,0.11614399]
[1727610199902,0.4042,65740.0,65739.0,0.1161459]
[1727610204300,0.4042,65740.0,65739.0,0.002]
[1727610208492,0.0434,65740.0,65739.0,0.002]
[1727610208697,0.4042,65740.0,65739.0,0.002]
[1727610212198,0.4042,65740.0,65739.0,0.11623628]
[1727610219313,0.4042,65740.0,65739.0,0.002]
[1727610227323,0.4042,65740.0,65739.0,0.11623832]
[1727610234219,0.4042,65740.0,65739.0,0.002]
[1727610235524,0.0434,65740.0,65739.0,0.002]
[1727610235726,0.4042,65740.0,65739.0,0.002]
[1727610242225,0.4042,65740.0,65739.0,0.1162131]
[1727610243336,0.4042,65740.0,65739.0,0.19199385]
[1727610243538,0.0434,65740.0,65739.0,0.19199385]
[1727610243739,0.4042,65740.0,65739.0,0.19199385]
[1727610244929,0.0434,65740.0,65739.0,0.19199385]
[1727610245129,0.4042,65740.0,65739.0,0.19199385]
[1727610247328,0.0434,65740.0,65739.0,0.19199385]
[1727610247532,0.4042,65740.0,65739.0,0.19198235]
[1727610253641,0.0434,65740.0,65739.0,0.1162016]
[1727610254144,0.4042,65740.0,65739.0,0.1162016]
[1727610254545,0.0434,65740.0,65739.0,0.1162016]
[1727610254946,0.4042,65740.0,65739.0,0.1162016]
[1727610255944,0.0434,65740.0,65739.0,0.1162016]
[1727610256446,0.4042,65740.0,65739.0,0.1162016]
[1727610257148,0.0434,65740.0,65739.0,0.1162016]
[1727610257449,0.4042,65740.0,65739.0,0.002]
[1727610259451,0.0434,65740.0,65739.0,0.002]
[1727610259747,0.4042,65740.0,65739.0,0.002]
[1727610262244,0.0434,65740.0,65739.0,0.002]
[1727610262454,0.4042,65740.0,65739.0,0.002]
[1727610262748,0.51059304,65740.0,65739.0,0.002]
[1727610263350,0.4042,65740.0,65739.0,0.002]
[1727610263542,0.51059304,65740.0,65739.0,0.002]
[1727610264352,0.0434,65740.0,65739.0,0.11626795]
[1727610264650,0.4042,65740.0,65739.0,0.11626795]
[1727610265038,0.4042,65740.0,65739.0,0.002]
[1727610266042,0.0434,65740.0,65739.0,0.002]
[1727610266244,0.4042,65740.0,65739.0,0.002]
[1727610266650,0.0434,65740.0,65739.0,0.002]
[1727610267349,0.4042,65740.0,65739.0,0.002]
[1727610267549,0.0434,65740.0,65739.0,0.002]
[1727610267748,0.4042,65740.0,65739.0,0.002]
[1727610268846,0.0434,65740.0,65739.0,0.002]
[1727610269046,0.4042,65740.0,65739.0,0.002]
[1727610269252,0.0434,65740.0,65739.0,0.002]
[1727610269453,0.4042,65740.0,65739.0,0.002]
[1727610271158,0.0434,65740.0,65739.0,0.002]
[1727610271464,0.4042,65740.0,65739.0,0.002]
[1727610272158,0.4042,65740.0,65739.0,0.11628171]
[1727610272452,0.51059304,65740.0,65739.0,0.002]
[1727610272961,0.4042,65740.0,65739.0,0.002]
[1727610274452,0.0434,65740.0,65739.0,0.002]
[1727610274849,0.4042,65740.0,65739.0,0.002]
[1727610275454,0.0434,65740.0,65739.0,0.002]
[1727610275655,0.4042,65740.0,65739.0,0.002]
[1727610276655,0.0434,65740.0,65739.0,0.002]
[1727610277057,0.4042,65740.0,65739.0,0.002]
[1727610277256,0.0434,65740.0,65739.0,0.002]
[1727610277454,0.51059304,65740.0,65739.0,0.002]
[1727610277655,0.14979304,65740.0,65739.0,0.002]
[1727610277856,0.51059304,65740.0,65739.0,0.002]
[1727610278457,0.14979304,65740.0,65739.0,0.002]
[1727610278857,0.51059304,65740.0,65739.0,0.002]
[1727610279360,0.51059304,65740.0,65739.0,0.11624153]
[1727610279663,0.4042,65740.0,65739.0,0.11624153]
[1727610279859,0.0434,65740.0,65739.0,0.11624153]
[1727610280062,0.4042,65740.0,65739.0,0.11624153]
[1727610281063,0.0434,65740.0,65739.0,0.11624153]
[1727610281364,0.4042,65740.0,65739.0,0.11624153]
[1727610282155,0.4042,65740.0,65739.0,0.11624118]
[1727610283551,0.0434,65740.0,65739.0,0.11624118]
[1727610284057,0.4042,65740.0,65739.0,0.11624118]
[1727610285253,0.0434,65740.0,65739.0,0.11624118]
[1727610285567,0.4042,65740.0,65739.0,0.11624118]
[1727610285752,0.0434,65740.0,65739.0,0.11624118]
[1727610286364,0.4042,65740.0,65739.0,0.11624118]
[1727610286768,0.0434,65740.0,65739.0,0.11624118]
[1727610286955,0.4042,65740.0,65739.0,0.11622202]
[1727610288064,0.0434,65740.0,65739.0,0.11622202]
[1727610288465,0.4042,65740.0,65739.0,0.11622202]
[1727610292067,0.4042,65740.0,65739.0,0.11622326]
[1727610292573,0.0434,65740.0,65739.0,0.11622326]
[1727610292964,0.4042,65740.0,65739.0,0.11622326]
[1727610294571,0.51059304,65740.0,65739.0,0.002]
[1727610295472,0.4042,65740.0,65739.0,0.002]
[1727610296766,0.51059304,65740.0,65739.0,0.002]
[1727610296964,0.4042,65740.0,65739.0,0.002]
[1727610297666,0.51059304,65740.0,65739.0,0.002]
[1727610297878,0.4042,65740.0,65739.0,0.002]
[1727610299582,0.0434,65740.0,65739.0,0.002]
[1727610299768,0.4042,65740.0,65739.0,0.002]
[1727610299967,0.0434,65740.0,65739.0,0.002]
[1727610300163,0.4042,65740.0,65739.0,0.002]
[1727610301679,0.0434,65740.0,65739.0,0.002]
[1727610301867,0.4042,65740.0,65739.0,0.002]
[1727610302475,0.4042,65740.0,65739.0,0.11621541]
[1727610304678,0.0434,65740.0,65739.0,0.11621541]
[1727610304875,0.4042,65740.0,65739.0,0.11621541]
[1727610305276,0.4042,65740.0,65739.0,0.11621833]
[1727610306570,0.0434,65740.0,65739.0,0.11621833]
[1727610306783,0.4042,65740.0,65739.0,0.11621833]
[1727610307682,0.0434,65740.0,65739.0,0.11621833]
[1727610307882,0.4042,65740.0,65739.0,0.11621833]
[1727610309487,0.48813983,65740.0,65739.0,0.002]
[1727610309688,0.12733983,65740.0,65739.0,0.002]
[1727610309881,0.48813983,65740.0,65739.0,0.002]
[1727610310077,0.12734003,65740.0,65739.0,0.002]
[1727610310386,0.48814003,65740.0,65739.0,0.002]
[1727610310784,0.12734003,65740.0,65739.0,0.002]
[1727610310984,0.48814003,65740.0,65739.0,0.002]
[1727610311373,0.64033399,65740.0,65739.0,0.002]
[1727610311686,0.48814003,65740.0,65739.0,0.002]
[1727610312077,0.12734003,65740.0,65739.0,0.002]
[1727610312278,0.48814003,65740.0,65739.0,0.002]
[1727610313179,0.12734003,65740.0,65739.0,0.002]
[1727610313387,0.48814003,65740.0,65739.0,0.002]
[1727610314973,0.48814003,65740.0,65739.0,0.001]
[1727610315188,0.48814003,65740.0,65737.0,0.0305]
[1727610315484,0.03725123,65739.0,65734.0,0.0035]
[1727610315691,0.10693796,65735.0,65734.0,0.0035]
[1727610315989,0.10693796,65735.0,65731.0,0.0313]
[1727610315990,0.21693796,65735.0,65731.0,0.0313]
[1727610316286,0.0004,65732.0,65731.0,0.0313]
[1727610316482,0.0304,65732.0,65731.0,0.0313]
[1727610317484,0.0304,65732.0,65731.0,0.1455639]
[1727610318279,0.0304,65732.0,65731.0,0.1775639]
[1727610318681,0.0324,65732.0,65731.0,0.1785639]
[1727610318880,0.0324,65732.0,65731.0,0.1775639]
[1727610319181,0.0354,65732.0,65731.0,0.1785639]
[1727610319788,0.0354,65732.0,65731.0,0.17858129]
[1727610320693,0.02,65732.0,65731.0,0.17858129]
[1727610321793,0.02,65732.0,65731.0,0.17830149]
[1727610324490,0.02,65732.0,65731.0,0.0643]
[1727610325092,0.05725169,65732.0,65731.0,0.0643]
[1727610325496,0.02,65732.0,65731.0,0.0643]
[1727610325896,0.10394416,65732.0,65731.0,0.0643]
[1727610326694,0.02,65732.0,65731.0,0.0643]
[1727610326889,0.05725169,65732.0,65731.0,0.0643]
[1727610327094,0.02,65732.0,65731.0,0.0643]
[1727610327292,0.10394416,65732.0,65731.0,0.0643]
[1727610328085,0.15689756,65732.0,65731.0,0.0643]
[1727610328290,0.24084172,65732.0,65731.0,0.0643]
[1727610329797,0.10394416,65732.0,65731.0,0.0643]
[1727610331100,0.15689933,65732.0,65731.0,0.0643]
[1727610331399,0.19415102,65732.0,65731.0,0.0643]
[1727610331587,0.24084349,65732.0,65731.0,0.0643]
[1727610331901,0.10394416,65732.0,65731.0,0.0643]
[1727610332498,0.02,65732.0,65731.0,0.17827127]
[1727610339210,0.02,65732.0,65731.0,0.2689634]
[1727610339608,0.02,65732.0,65731.0,0.0643]
[1727610339812,0.02,65732.0,65731.0,0.12494558]
[1727610345215,0.02,65732.0,65731.0,0.0643]
[1727610347712,0.1569035,65732.0,65731.0,0.0643]
[1727610347907,0.19415519,65732.0,65731.0,0.0643]
[1727610348113,0.24084766,65732.0,65731.0,0.0643]
[1727610354620,0.24084766,65732.0,65731.0,0.17808237]
[1727610354621,0.02,65732.0,65731.0,0.17808237]
[1727610357320,0.02,65732.0,65731.0,0.31366903]
[1727610358120,0.02,65732.0,65731.0,0.17808237]